fUSD/lending_fUSD_20260614
["ID","MTS","AMOUNT","RATE_DAILY","PERIOD"]
[424986234,1781373043000,-500.0,0.0002,2]
[424986231,1781373043000,-500.0,0.0002,2]
[424986240,1781373043000,-500.0,0.0002,2]
[424986241,1781373043000,-500.0,0.0002,2]
[424986244,1781373043000,-500.0,0.0002,2]
[424986245,1781373043000,-500.0,0.0002,2]
[424986221,1781373043000,-500.0,0.0002,2]
[424986247,1781373043000,-500.0,0.0002,2]
[424986254,1781373043000,-500.0,0.0002,2]
[424986242,1781373043000,-500.0,0.0002,2]
[424986233,1781373043000,-500.0,0.0002,2]
[424986220,1781373043000,-500.0,0.0002,2]
[424986207,1781373043000,-5188.5534803,0.000199,2]
[424986217,1781373043000,-500.0,0.0002,2]
[424986246,1781373043000,-500.0,0.0002,2]
[424986191,1781373043000,-1080.9230152,0.000193,2]
[424986190,1781373043000,-20478.25,0.00019178,2]
[424986192,1781373043000,-5188.5534803,0.000193,2]
[424986193,1781373043000,-1016.07959648,0.000193,2]
[424986195,1781373043000,-5188.5534803,0.000195,2]
[424986194,1781373043000,-1080.9230152,0.000195,2]
[424986196,1781373043000,-1016.07959648,0.000195,2]
[424986203,1781373043000,-1016.07959648,0.000197,2]
[424986200,1781373043000,-172.887456,0.000196,2]
[424986197,1781373043000,-2005.9555727,0.00019557,2]
[424986202,1781373043000,-5188.5534803,0.000197,2]
[424986218,1781373043000,-500.0,0.0002,2]
[424986199,1781373043000,-1192.19,0.00019583,2]
[424986204,1781373043000,-500.0,0.00019899,2]
[424986206,1781373043000,-1080.9230152,0.000199,2]
[424986205,1781373043000,-500.0,0.00019899,2]
[424986208,1781373043000,-1016.07959648,0.000199,2]
[424986209,1781373043000,-948.307471,0.000199,2]
[424986210,1781373043000,-948.307471,0.000199,2]
[424986215,1781373043000,-151.0,0.0002,2]
[424986214,1781373043000,-224.758743,0.0002,2]
[424986213,1781373043000,-11440.0,0.0002,2]
[424986211,1781373043000,-948.307471,0.000199,2]
[424986212,1781373043000,-948.307471,0.000199,2]
[424986216,1781373043000,-500.0,0.0002,2]
[424986201,1781373043000,-1080.9230152,0.000197,2]
[424986248,1781373043000,-500.0,0.0002,2]
[424986295,1781373043000,-176.0,0.0002,2]
[424986250,1781373043000,-500.0,0.0002,2]
[424986291,1781373043000,-500.0,0.0002,2]
[424986293,1781373043000,-1000.0,0.0002,30]
[424986297,1781373043000,-310.0,0.0002,2]
[424986298,1781373043000,-313.0,0.0002,2]
[424986294,1781373043000,-151.0,0.0002,2]
[424986296,1781373043000,-1902.84,0.0002,10]
[424986299,1781373043000,-157.0,0.0002,2]
[424986300,1781373043000,-248.61531,0.0002,2]
[424986301,1781373043000,-248.61531,0.0002,2]
[424986303,1781373043000,-248.61531,0.0002,2]
[424986305,1781373043000,-1197.0,0.0002,2]
[424986302,1781373043000,-248.61531,0.0002,2]
[424986290,1781373043000,-500.0,0.0002,2]
[424986307,1781373043000,-151.0,0.0002,2]
[424986306,1781373043000,-936.0,0.0002,2]
[424986304,1781373043000,-151.0,0.0002,2]
[424986309,1781373043000,-384.0,0.0002,2]
[424986310,1781373043000,-247.0,0.0002,2]
[424986311,1781373043000,-160.0,0.0002,2]
[424986313,1781373043000,-310.472295,0.0002,2]
[424986312,1781373043000,-310.472295,0.0002,2]
[424986315,1781373043000,-310.472295,0.0002,2]
[424986318,1781373043000,-197.35499237,0.0002,2]
[424986317,1781373043000,-195.0,0.0002,2]
[424986314,1781373043000,-310.472295,0.0002,2]
[424986243,1781373043000,-500.0,0.0002,2]
[424986308,1781373043000,-1259.0,0.0002,2]
[424986292,1781373043000,-500.0,0.0002,2]
[424986316,1781373043000,-510.0,0.0002,2]
[424986289,1781373043000,-500.0,0.0002,2]
[424986288,1781373043000,-500.0,0.0002,2]
[424986257,1781373043000,-500.0,0.0002,2]
[424986270,1781373043000,-500.0,0.0002,2]
[424986272,1781373043000,-500.0,0.0002,2]
[424986269,1781373043000,-500.0,0.0002,2]
[424986271,1781373043000,-500.0,0.0002,2]
[424986263,1781373043000,-500.0,0.0002,2]
[424986260,1781373043000,-500.0,0.0002,2]
[424986273,1781373043000,-500.0,0.0002,2]
[424986268,1781373043000,-500.0,0.0002,2]
[424986267,1781373043000,-500.0,0.0002,2]
[424986265,1781373043000,-500.0,0.0002,2]
[424986266,1781373043000,-500.0,0.0002,2]
[424986274,1781373043000,-500.0,0.0002,2]
[424986253,1781373043000,-500.0,0.0002,2]
[424986275,1781373043000,-500.0,0.0002,2]
[424986276,1781373043000,-500.0,0.0002,2]
[424986287,1781373043000,-500.0,0.0002,2]
[424986282,1781373043000,-500.0,0.0002,2]
[424986284,1781373043000,-500.0,0.0002,2]
[424986281,1781373043000,-500.0,0.0002,2]
[424986283,1781373043000,-500.0,0.0002,2]
[424986285,1781373043000,-500.0,0.0002,2]
[424986280,1781373043000,-500.0,0.0002,2]
[424986279,1781373043000,-500.0,0.0002,2]
[424986277,1781373043000,-500.0,0.0002,2]
[424986286,1781373043000,-500.0,0.0002,2]
[424986278,1781373043000,-500.0,0.0002,2]
[424986360,1781373044000,-151.0,0.00020105,2]
[424986356,1781373044000,-500.0,0.00020105,2]
[424986359,1781373044000,-151.0,0.00020105,2]
[424986355,1781373044000,-151.0,0.00020105,2]
[424986349,1781373044000,-151.0,0.00020105,2]
[424986351,1781373044000,-151.0,0.00020105,2]
[424986350,1781373044000,-500.0,0.00020105,2]
[424986353,1781373044000,-151.0,0.00020105,2]
[424986358,1781373044000,-151.0,0.00020105,2]
[424986357,1781373044000,-500.0,0.00020105,2]
[424986354,1781373044000,-500.0,0.00020105,2]
[424986361,1781373044000,-151.0,0.00020105,2]
[424986366,1781373044000,-151.0,0.00020105,2]
[424986364,1781373044000,-151.0,0.00020105,2]
[424986372,1781373044000,-150.0,0.0002058,2]
[424986371,1781373044000,-150.0,0.0002058,2]
[424986367,1781373044000,-505.0,0.00020138,4]
[424986370,1781373044000,-151.0,0.00020422,2]
[424986368,1781373044000,-5594.89729196,0.00020194,2]
[424986362,1781373044000,-151.0,0.00020105,2]
[424986369,1781373044000,-522.4,0.00020381,2]
[424986373,1781373044000,-150.0,0.0002058,2]
[424986374,1781373044000,-173.51374705,0.0002058,2]
[424986376,1781373044000,-2157.14243826,0.00020653,2]
[424986352,1781373044000,-500.0,0.00020105,2]
[424986377,1781373044000,-735.29,0.00020686,2]
[424986363,1781373044000,-151.0,0.00020105,2]
[424986348,1781373044000,-500.0,0.00020105,2]
[424986330,1781373044000,-151.0,0.00020105,2]
[424986343,1781373044000,-151.0,0.00020105,2]
[424986379,1781373044000,-615.5,0.00020738,2]
[424986320,1781373044000,-322.086425,0.0002,2]
[424986321,1781373044000,-322.086425,0.0002,2]
[424986319,1781373044000,-187.0,0.0002,2]
[424986323,1781373044000,-322.086425,0.0002,2]
[424986322,1781373044000,-322.086425,0.0002,2]
[424986324,1781373044000,-151.0,0.00020105,2]
[424986326,1781373044000,-151.0,0.00020105,2]
[424986334,1781373044000,-2080.17592889,0.00020105,2]
[424986325,1781373044000,-151.0,0.00020105,2]
[424986335,1781373044000,-500.0,0.00020105,2]
[424986333,1781373044000,-151.0,0.00020105,2]
[424986332,1781373044000,-151.0,0.00020105,2]
[424986327,1781373044000,-151.0,0.00020105,2]
[424986328,1781373044000,-151.0,0.00020105,2]
[424986329,1781373044000,-151.0,0.00020105,2]
[424986331,1781373044000,-151.0,0.00020105,2]
[424986336,1781373044000,-151.0,0.00020105,2]
[424986338,1781373044000,-500.0,0.00020105,2]
[424986339,1781373044000,-151.0,0.00020105,2]
[424986342,1781373044000,-500.0,0.00020105,2]
[424986341,1781373044000,-151.0,0.00020105,2]
[424986340,1781373044000,-151.0,0.00020105,2]
[424986337,1781373044000,-151.0,0.00020105,2]
[424986346,1781373044000,-500.0,0.00020105,2]
[424986345,1781373044000,-151.0,0.00020105,2]
[424986344,1781373044000,-500.0,0.00020105,2]
[424986347,1781373044000,-151.0,0.00020105,2]
[424986380,1781373044000,-306.37,0.0002081,2]
[424986365,1781373044000,-151.0,0.00020105,2]
[424986375,1781373044000,-499.11,0.00020647,2]
[424986411,1781373044000,-157.0,0.00022,2]
[424986412,1781373044000,-1197.0,0.00022,2]
[424986416,1781373044000,-384.0,0.00022,2]
[424986415,1781373044000,-1259.0,0.00022,2]
[424986414,1781373044000,-151.0,0.00022,2]
[424986413,1781373044000,-936.0,0.00022,2]
[424986418,1781373044000,-510.0,0.00022,2]
[424986417,1781373044000,-247.0,0.00022,2]
[424986421,1781373044000,-174.61919141,0.00022179,2]
[424986420,1781373044000,-164.03567668,0.00022179,2]
[424986419,1781373044000,-187.0,0.00022,2]
[424986423,1781373044000,-156.68483988,0.00022179,2]
[424986424,1781373044000,-151.0,0.00022179,2]
[424986431,1781373044000,-500.0,0.00022179,2]
[424986432,1781373044000,-500.0,0.00022179,2]
[424986422,1781373044000,-578.20924308,0.00022179,2]
[424986425,1781373044000,-325.65107355,0.00022179,2]
[424986426,1781373044000,-500.0,0.00022179,2]
[424986430,1781373044000,-152.0,0.00022179,2]
[424986428,1781373044000,-500.0,0.00022179,2]
[424986427,1781373044000,-500.0,0.00022179,2]
[424986429,1781373044000,-209.40437684,0.00022179,2]
[424986433,1781373044000,-152.0,0.00022179,2]
[424986434,1781373044000,-500.0,0.00022179,2]
[424986435,1781373044000,-721.12765534,0.00022179,2]
[424986437,1781373044000,-151.0,0.00022179,2]
[424986385,1781373044000,-313.0,0.00021,2]
[424986409,1781373044000,-310.0,0.00022,2]
[424986405,1781373044000,-500.0,0.00021918,2]
[424986436,1781373044000,-152.0,0.00022179,2]
[424986404,1781373044000,-500.0,0.00021918,8]
[424986403,1781373044000,-700.0,0.00021918,8]
[424986381,1781373044000,-372.14,0.00020817,2]
[424986383,1781373044000,-176.0,0.00021,2]
[424986378,1781373044000,-893.14,0.00020694,2]
[424986382,1781373044000,-256.45,0.00020861,2]
[424986387,1781373044000,-1197.0,0.00021,2]
[424986389,1781373044000,-151.0,0.00021,2]
[424986397,1781373044000,-2236.95670847,0.00021201,2]
[424986390,1781373044000,-1259.0,0.00021,2]
[424986386,1781373044000,-157.0,0.00021,2]
[424986388,1781373044000,-936.0,0.00021,2]
[424986438,1781373044000,-500.0,0.00022179,2]
[424986394,1781373044000,-510.0,0.00021,2]
[424986384,1781373044000,-310.0,0.00021,2]
[424986393,1781373044000,-161.0,0.00021,2]
[424986396,1781373044000,-187.0,0.00021,2]
[424986408,1781373044000,-176.0,0.00022,2]
[424986407,1781373044000,-206.0,0.00021976,2]
[424986406,1781373044000,-401.0,0.00021961,2]
[424986401,1781373044000,-5000.0,0.00021918,2]
[424986400,1781373044000,-2319.72410669,0.00021749,2]
[424986410,1781373044000,-313.0,0.00022,2]
[424986399,1781373044000,-1192.19,0.00021363,2]
[424986398,1781373044000,-505.0,0.00021207,5]
[424986395,1781373044000,-150.0,0.00021,2]
[424986391,1781373044000,-384.0,0.00021,2]
[424986392,1781373044000,-247.0,0.00021,2]
[424986402,1781373044000,-150.0,0.00021918,2]
[424986478,1781373045000,-310.472295,0.00022645,2]
[424986479,1781373045000,-310.472295,0.00022645,2]
[424986476,1781373045000,-310.472295,0.00022645,2]
[424986470,1781373045000,-151.0,0.00022619,2]
[424986473,1781373045000,-948.307471,0.00022645,2]
[424986474,1781373045000,-948.307471,0.00022645,2]
[424986471,1781373045000,-5594.89729196,0.00022645,2]
[424986477,1781373045000,-310.472295,0.00022645,2]
[424986469,1781373045000,-325.65107355,0.00022619,2]
[424986475,1781373045000,-948.307471,0.00022645,2]
[424986472,1781373045000,-948.307471,0.00022645,2]
[424986486,1781373045000,-164.03567668,0.00022727,2]
[424986481,1781373045000,-322.086425,0.00022645,2]
[424986484,1781373045000,-325.65107355,0.00022674,2]
[424986482,1781373045000,-322.086425,0.00022645,2]
[424986483,1781373045000,-322.086425,0.00022645,2]
[424986485,1781373045000,-151.0,0.00022674,2]
[424986490,1781373045000,-151.0,0.00022727,2]
[424986487,1781373045000,-181.08010149,0.00022727,2]
[424986488,1781373045000,-156.68483988,0.00022727,2]
[424986489,1781373045000,-217.15233878,0.00022727,2]
[424986491,1781373045000,-325.65107372,0.00022729,2]
[424986467,1781373045000,-325.65107355,0.00022564,2]
[424986492,1781373045000,-151.0,0.00022729,2]
[424986480,1781373045000,-322.086425,0.00022645,2]
[424986465,1781373045000,-325.65107355,0.00022509,2]
[424986448,1781373045000,-152.0,0.00022179,2]
[424986466,1781373045000,-151.0,0.00022509,2]
[424986493,1781373045000,-533.0,0.00022735,5]
[424986443,1781373045000,-500.0,0.00022179,2]
[424986442,1781373045000,-151.0,0.00022179,2]
[424986441,1781373045000,-500.0,0.00022179,2]
[424986440,1781373045000,-500.0,0.00022179,2]
[424986444,1781373045000,-500.0,0.00022179,2]
[424986446,1781373045000,-152.0,0.00022179,2]
[424986445,1781373045000,-152.0,0.00022179,2]
[424986450,1781373045000,-152.0,0.00022179,2]
[424986449,1781373045000,-152.0,0.00022179,2]
[424986453,1781373045000,-151.0,0.00022234,2]
[424986447,1781373045000,-152.0,0.00022179,2]
[424986451,1781373045000,-152.0,0.00022179,2]
[424986452,1781373045000,-325.65107355,0.00022234,2]
[424986454,1781373045000,-505.0,0.00022276,6]
[424986456,1781373045000,-151.0,0.00022289,2]
[424986455,1781373045000,-325.65107355,0.00022289,2]
[424986458,1781373045000,-325.65107355,0.00022344,2]
[424986460,1781373045000,-522.4,0.00022353,2]
[424986462,1781373045000,-151.0,0.00022399,2]
[424986457,1781373045000,-2405.55389863,0.00022297,2]
[424986464,1781373045000,-151.0,0.00022454,2]
[424986461,1781373045000,-325.65107355,0.00022399,2]
[424986459,1781373045000,-151.0,0.00022344,2]
[424986463,1781373045000,-325.65107355,0.00022454,2]
[424986468,1781373045000,-151.0,0.00022564,2]
[424986495,1781373045000,-125361.9913008,0.00022754,2]
[424986439,1781373045000,-152.0,0.00022179,2]
[424986497,1781373045000,-248.61531,0.00022754,2]
[424986536,1781373045000,-151.0,0.00022877,15]
[424986537,1781373045000,-151.0,0.00022877,15]
[424986525,1781373045000,-129039.6268841,0.00022877,2]
[424986527,1781373045000,-151.0,0.00022877,15]
[424986529,1781373045000,-151.0,0.00022877,15]
[424986531,1781373045000,-151.0,0.00022877,15]
[424986530,1781373045000,-151.0,0.00022877,15]
[424986528,1781373045000,-151.0,0.00022877,15]
[424986533,1781373045000,-151.0,0.00022877,15]
[424986532,1781373045000,-151.0,0.00022877,15]
[424986538,1781373045000,-151.0,0.00022877,15]
[424986540,1781373045000,-151.0,0.00022877,15]
[424986544,1781373045000,-151.0,0.00022877,15]
[424986543,1781373045000,-151.0,0.00022877,15]
[424986547,1781373045000,-9885.9631134,0.00022877,2]
[424986541,1781373045000,-151.0,0.00022877,15]
[424986542,1781373045000,-151.0,0.00022877,15]
[424986546,1781373045000,-151.0,0.00022877,15]
[424986545,1781373045000,-151.0,0.00022877,15]
[424986548,1781373045000,-273.641047,0.00022877,15]
[424986550,1781373045000,-151.0,0.00022877,2]
[424986549,1781373045000,-151.0,0.00022877,2]
[424986552,1781373045000,-155.450133,0.00022877,2]
[424986551,1781373045000,-151.0,0.00022877,2]
[424986494,1781373045000,-2835.6789748,0.00022754,2]
[424986534,1781373045000,-151.0,0.00022877,15]
[424986535,1781373045000,-151.0,0.00022877,15]
[424986539,1781373045000,-151.0,0.00022877,15]
[424986524,1781373045000,-50891.8887148,0.00022877,2]
[424986499,1781373045000,-248.61531,0.00022754,2]
[424986526,1781373045000,-2835.6789748,0.00022877,2]
[424986510,1781373045000,-310.472295,0.00022754,2]
[424986509,1781373045000,-310.472295,0.00022754,2]
[424986512,1781373045000,-322.086425,0.00022754,2]
[424986511,1781373045000,-322.086425,0.00022754,2]
[424986507,1781373045000,-310.472295,0.00022754,2]
[424986508,1781373045000,-310.472295,0.00022754,2]
[424986500,1781373045000,-248.61531,0.00022754,2]
[424986501,1781373045000,-248.61531,0.00022754,2]
[424986504,1781373045000,-948.307471,0.00022754,2]
[424986503,1781373045000,-948.307471,0.00022754,2]
[424986502,1781373045000,-151.0,0.00022754,2]
[424986506,1781373045000,-948.307471,0.00022754,2]
[424986521,1781373045000,-500.0,0.00022876,2]
[424986523,1781373045000,-388.65670476,0.00022877,2]
[424986505,1781373045000,-948.307471,0.00022754,2]
[424986522,1781373045000,-2835.6789751,0.00022877,2]
[424986515,1781373045000,-1496.0,0.00022773,7]
[424986518,1781373045000,-2494.55939288,0.00022845,2]
[424986519,1781373045000,-2000.0,0.00022845,2]
[424986517,1781373045000,-166.65960565,0.00022822,2]
[424986514,1781373045000,-322.086425,0.00022754,2]
[424986516,1781373045000,-552.41131598,0.00022777,2]
[424986513,1781373045000,-322.086425,0.00022754,2]
[424986520,1781373045000,-300.0,0.00022845,7]
[424986587,1781373046000,-155.71016413,0.00023275,2]
[424986593,1781373046000,-2586.85809042,0.00023393,2]
[424986594,1781373046000,-152.0,0.00023756,2]
[424986586,1781373046000,-156.68483988,0.00023275,2]
[424986595,1781373046000,-152.0,0.00023756,2]
[424986585,1781373046000,-187.78006524,0.00023275,2]
[424986591,1781373046000,-505.0,0.00023345,7]
[424986584,1781373046000,-164.03567668,0.00023275,2]
[424986596,1781373046000,-152.0,0.00023756,2]
[424986598,1781373046000,-216.0,0.00023756,2]
[424986589,1781373046000,-151.0,0.00023275,2]
[424986605,1781373046000,-152.0,0.00023756,2]
[424986616,1781373046000,-310.0,0.00024,2]
[424986606,1781373046000,-240.0,0.00023756,2]
[424986608,1781373046000,-164.03567668,0.00023823,2]
[424986609,1781373046000,-194.72792766,0.00023823,2]
[424986610,1781373046000,-156.68483988,0.00023823,2]
[424986611,1781373046000,-151.0,0.00023823,2]
[424986601,1781373046000,-152.0,0.00023756,2]
[424986600,1781373046000,-152.0,0.00023756,2]
[424986604,1781373046000,-152.0,0.00023756,2]
[424986603,1781373046000,-152.0,0.00023756,2]
[424986612,1781373046000,-500.0,0.00023868,2]
[424986613,1781373046000,-2682.57183977,0.00023941,2]
[424986583,1781373046000,-150.0,0.00023014,2]
[424986607,1781373046000,-500.0,0.00023802,2]
[424986582,1781373046000,-187.0,0.00023,2]
[424986554,1781373046000,-248.61531,0.00022877,2]
[424986577,1781373046000,-151.0,0.00023,2]
[424986553,1781373046000,-248.61531,0.00022877,2]
[424986623,1781373046000,-247.0,0.00024,2]
[424986558,1781373046000,-948.307471,0.00022877,2]
[424986556,1781373046000,-248.61531,0.00022877,2]
[424986557,1781373046000,-151.0,0.00022877,2]
[424986559,1781373046000,-948.307471,0.00022877,2]
[424986555,1781373046000,-248.61531,0.00022877,2]
[424986561,1781373046000,-948.307471,0.00022877,2]
[424986560,1781373046000,-948.307471,0.00022877,2]
[424986563,1781373046000,-310.472295,0.00022877,2]
[424986567,1781373046000,-322.086425,0.00022877,2]
[424986564,1781373046000,-310.472295,0.00022877,2]
[424986565,1781373046000,-310.472295,0.00022877,2]
[424986568,1781373046000,-322.086425,0.00022877,2]
[424986566,1781373046000,-322.086425,0.00022877,2]
[424986562,1781373046000,-310.472295,0.00022877,2]
[424986570,1781373046000,-285.0,0.00022997,2]
[424986569,1781373046000,-322.086425,0.00022877,2]
[424986581,1781373046000,-510.0,0.00023,2]
[424986571,1781373046000,-176.0,0.00023,2]
[424986573,1781373046000,-313.0,0.00023,2]
[424986572,1781373046000,-310.0,0.00023,2]
[424986574,1781373046000,-170.0,0.00023,2]
[424986575,1781373046000,-1197.0,0.00023,2]
[424986579,1781373046000,-384.0,0.00023,2]
[424986576,1781373046000,-936.0,0.00023,2]
[424986578,1781373046000,-1259.0,0.00023,2]
[424986580,1781373046000,-247.0,0.00023,2]
[424986615,1781373046000,-176.0,0.00024,2]
[424986621,1781373046000,-1259.0,0.00024,2]
[424986617,1781373046000,-313.0,0.00024,2]
[424986649,1781373046000,-164.19,0.00024658,2]
[424986652,1781373046000,-151.0,0.00024658,2]
[424986654,1781373046000,-151.0,0.00024658,2]
[424986653,1781373046000,-151.0,0.00024658,2]
[424986651,1781373046000,-1000.0,0.00024658,2]
[424986657,1781373046000,-151.0,0.00024658,2]
[424986655,1781373046000,-151.0,0.00024658,2]
[424986656,1781373046000,-151.0,0.00024658,2]
[424986658,1781373046000,-151.0,0.00024658,2]
[424986659,1781373046000,-151.0,0.00024658,2]
[424986661,1781373046000,-151.0,0.00024658,2]
[424986665,1781373046000,-151.0,0.00024658,2]
[424986660,1781373046000,-151.0,0.00024658,2]
[424986664,1781373046000,-151.0,0.00024658,2]
[424986672,1781373046000,-200.0,0.00024736,2]
[424986663,1781373046000,-151.0,0.00024658,2]
[424986669,1781373046000,-151.0,0.00024658,2]
[424986662,1781373046000,-151.0,0.00024658,2]
[424986667,1781373046000,-151.0,0.00024658,2]
[424986670,1781373046000,-168.23042,0.00024658,2]
[424986618,1781373046000,-1197.0,0.00024,2]
[424986671,1781373046000,-156.01674226,0.00024658,2]
[424986674,1781373046000,-200.0,0.00024736,2]
[424986675,1781373046000,-162.78,0.00024812,2]
[424986673,1781373046000,-200.0,0.00024736,2]
[424986676,1781373046000,-356.03,0.00024832,2]
[424986666,1781373046000,-151.0,0.00024658,2]
[424986650,1781373046000,-230.44063676,0.00024658,2]
[424986668,1781373046000,-151.0,0.00024658,2]
[424986643,1781373046000,-500.0,0.00024564,2]
[424986645,1781373046000,-151.0,0.00024565,2]
[424986614,1781373046000,-224.758743,0.00024,2]
[424986622,1781373046000,-384.0,0.00024,2]
[424986619,1781373046000,-936.0,0.00024,2]
[424986625,1781373046000,-187.0,0.00024,2]
[424986624,1781373046000,-510.0,0.00024,2]
[424986635,1781373046000,-2821.08700141,0.00024491,2]
[424986626,1781373046000,-150.0,0.00024164,2]
[424986631,1781373046000,-154.59919305,0.00024371,2]
[424986629,1781373046000,-201.93286098,0.00024371,2]
[424986628,1781373046000,-164.03567668,0.00024371,2]
[424986627,1781373046000,-522.4,0.00024324,2]
[424986630,1781373046000,-156.68483997,0.00024371,2]
[424986620,1781373046000,-168.0,0.00024,2]
[424986634,1781373046000,-2781.82699784,0.00024489,2]
[424986632,1781373046000,-505.0,0.00024414,8]
[424986646,1781373046000,-151.0,0.00024568,7]
[424986639,1781373046000,-500.0,0.00024564,2]
[424986648,1781373046000,-152.0,0.00024594,3]
[424986647,1781373046000,-500.0,0.00024584,2]
[424986642,1781373046000,-500.0,0.00024564,2]
[424986641,1781373046000,-500.0,0.00024564,2]
[424986640,1781373046000,-500.0,0.00024564,2]
[424986636,1781373046000,-200.0,0.00024491,2]
[424986644,1781373046000,-500.0,0.00024564,2]
[424986637,1781373046000,-200.0,0.00024491,2]
[424986633,1781373046000,-2000.0,0.00024465,2]
[424986638,1781373046000,-200.0,0.00024491,2]
[424986703,1781373047000,-5594.89729196,0.00025096,2]
[424986713,1781373047000,-200.0,0.00025485,2]
[424986702,1781373047000,-3644.0,0.00025086,2]
[424986707,1781373047000,-500.0,0.00025321,2]
[424986708,1781373047000,-150.0,0.00025373,2]
[424986705,1781373047000,-200.0,0.00025233,2]
[424986709,1781373047000,-164.03567668,0.00025467,2]
[424986706,1781373047000,-200.0,0.00025233,2]
[424986712,1781373047000,-200.0,0.00025485,2]
[424986711,1781373047000,-505.0,0.00025483,9]
[424986719,1781373047000,-948.307471,0.0002565,2]
[424986715,1781373047000,-240.114956,0.0002565,2]
[424986721,1781373047000,-948.307471,0.0002565,2]
[424986717,1781373047000,-151.0,0.0002565,2]
[424986716,1781373047000,-151.0,0.0002565,2]
[424986714,1781373047000,-2991.49051684,0.00025585,2]
[424986725,1781373047000,-248.61531,0.00025678,2]
[424986720,1781373047000,-948.307471,0.0002565,2]
[424986718,1781373047000,-151.0,0.0002565,2]
[424986695,1781373047000,-247.34,0.00025018,2]
[424986710,1781373047000,-217.15233878,0.00025467,2]
[424986697,1781373047000,-1359.0,0.00025086,2]
[424986688,1781373047000,-936.0,0.00025,2]
[424986696,1781373047000,-2884.75459676,0.00025037,2]
[424986723,1781373047000,-192.0,0.00025674,2]
[424986678,1781373047000,-151.0,0.00024918,2]
[424986679,1781373047000,-747.80937859,0.00024918,2]
[424986677,1781373047000,-599.60298507,0.00024918,2]
[424986683,1781373047000,-200.0,0.00024983,2]
[424986680,1781373047000,-164.03567668,0.00024919,2]
[424986682,1781373047000,-200.0,0.00024983,2]
[424986684,1781373047000,-192.0,0.00025,2]
[424986685,1781373047000,-312.92154219,0.00025,2]
[424986686,1781373047000,-313.49854041,0.00025,2]
[424986687,1781373047000,-1203.0,0.00025,2]
[424986689,1781373047000,-1260.0,0.00025,2]
[424986681,1781373047000,-209.40437684,0.00024919,2]
[424986690,1781373047000,-388.0,0.00025,2]
[424986691,1781373047000,-252.92227884,0.00025,2]
[424986692,1781373047000,-528.0,0.00025,2]
[424986700,1781373047000,-1275.0,0.00025086,2]
[424986701,1781373047000,-6076.0,0.00025086,2]
[424986694,1781373047000,-204.0,0.00025,2]
[424986699,1781373047000,-383.0,0.00025086,2]
[424986693,1781373047000,-157.56,0.00025,2]
[424986698,1781373047000,-3557.0,0.00025086,2]
[424986724,1781373047000,-248.61531,0.00025678,2]
[424986704,1781373047000,-300.0,0.000251,2]